Cogmind - Beta 9.6 @@@ ROGUE MODE // 2020.06.01 @ 23:58:32 Player: Decinym Result: Destroyed by as-31545 with Assembled F-torch Performance ------------- Evolutions (0) 0 Regions Visited (3) 600 Robots Destroyed (9) 45 Value Destroyed (214) 214 Prototype IDs (22) 440 Alien Tech Used (0) 0 Bonus (-78) -78 TOTAL SCORE: 1221 Bonus ------- Aligned with FarCom 300 Friendly Fire -378 Cogmind --------- Core Integrity 0/250 Matter 290/300 Energy 90/100 System Corruption 1% Temperature Cool (40) Movement Core (150) Ox2 Location -10/Exiles Parts ------- > --- POWER (1) -------- (None) > --- PROPULSION (2) --- (None) > --- UTILITY (2) ------ Small Storage Unit > --- WEAPON (2) ------- Longsword +1 > --- INVENTORY (6) ---- Light Nuclear Core Aluminum Leg Aluminum Leg EM Pulse Gun Small Laser Particle Gun Peak State ------------ > --- POWER ------------ Light Ion Engine > --- PROPULSION ------- Aluminum Leg Aluminum Leg > --- UTILITY ---------- Improved Heat Sink Small Storage Unit > --- WEAPON ----------- Particle Gun Longsword +1 > --- INVENTORY -------- Light Nuclear Core Aluminum Leg Aluminum Leg EM Pulse Gun Small Laser Mining Claw [Rating: 17] Favorites ----------- Power Light Ion Engine Engine Light Ion Engine Propulsion Aluminum Leg Leg Aluminum Leg Utility Small Storage Unit Device Improved Heat Sink Storage Small Storage Unit Weapon Particle Gun Energy Gun Particle Gun Ballistic Gun Assault Rifle Slashing Weapon Longsword +1 Build | -11 -10 -10 -10 ------- Run | Scr Mat Min Exi Slots Evolved . | . . . . Power . | . . . . Propulsion . | . . . . Utility . | . . . . Weapon . | . . . . Parts Attached 7 | . 1 3 3 Power 1 | . . . 1 Engine 1 | . . . 1 Core . | . . . . Reactor . | . . . . Propulsion 1 | . . 1 . Treads . | . . . . Leg 1 | . . 1 . Wheel . | . . . . Hover . | . . . . Flight . | . . . . Utility 1 | . 1 . . Device 1 | . 1 . . Storage . | . . . . Processor . | . . . . Hackware . | . . . . Protection . | . . . . Artifact . | . . . . Weapon 4 | . . 2 2 Energy Gun 2 | . . 2 . Energy Cannon . | . . . . Ballistic Gun . | . . . . Ballistic Cannon . | . . . . Launcher . | . . . . Special Weapon . | . . . . Impact Weapon . | . . . . Slashing Weapon 2 | . . . 2 Piercing Weapon . | . . . . Special Melee Weapon . | . . . . Unidentified Prototypes . | . . . . Parts Lost 4 | . . . 4 Power 1 | . . . 1 Propulsion 1 | . . . 1 Utility 1 | . . . 1 Weapon 1 | . . . 1 Highest Loss Streak 4 | . . . 4 Average Slot Usage (%) 99 | . 96 100 100 Engine 14 | . 14 14 14 Leg 28 | . 28 28 28 Device 13 | . 10 14 14 Storage 14 | . 14 14 14 Energy Gun 22 | . 14 22 25 Ballistic Gun 4 | . 14 5 . Slashing Weapon 1 | . . . 2 Naked Turns . | . . . . Heaviest Build 13 | 11 12 12 13 Greatest Support 20 | 20 20 20 20 Greatest Overweight (x) . | . . . . Average Overweight (x) . | . . . . Largest Inventory Capacity 6 | . 6 6 6 Average Capacity 6 | . 6 6 6 Most Carried 6 | . 6 6 6 Average Carried 5 | . 5 5 5 Final Capacity 6 | 6 6 6 6 Final Carried 6 | 6 6 6 6 Class Distribution -------------------- 63% | Scavenger-Mutant 36% | Mutant Dominant Class ---------------- Mutant | -10/Materials Scavenger-Mutant | -10/Mines Scavenger-Mutant | -10/Exiles Resources | -11 -10 -10 -10 ----------- Run | Scr Mat Min Exi Matter Collected 273 | 200 22 51 . Remotely . | . . . . Salvage Created 310 | . 167 143 . Parts 21 | . 9 12 . Haulers Intercepted . | . . . . Recyclers Shooed . | . . . . Parts Field Recycled . | . . . . Retrieved Matter . | . . . . Parts Self-Destructed . | . . . . Prevented . | . . . . Kills | -11 -10 -10 -10 ------- Run | Scr Mat Min Exi Combat Hostiles Destroyed 7 | . 2 5 . Guns 5 | . . 5 . AOE 2 | . 2 . . Classes Destroyed 4 | . 3 1 . Recycler 1 | . 1 . . Watcher 1 | . 1 . . Swarmer 3 | . . 3 . Grunt 4 | . 2 2 . Best Kill Streak 3 | . 3 3 . Combat Bots Only 3 | . 2 3 . Max Kills in Single Turn 2 | . 2 2 . Gunslinging 1 | . . 1 . Exploded 2 | . 2 . . Melee . | . . . . Uniques/NPCs Destroyed . | . . . . Combat | -11 -10 -10 -10 -------- Run | Scr Mat Min Exi Damage Taken 773 | . 15 89 669 Core 250 | . 15 18 217 Absorbed by Shields . | . . . . Core Remaining (%) 100 | 100 . . . Volleys Fired 11 | . 4 7 . Largest 2 | . 2 2 . Hottest 60 | . 60 60 . Shots Fired 22 | . 8 14 . Gun 22 | . 8 14 . Cannon . | . . . . Launcher . | . . . . Special . | . . . . Kinetic 11 | . 4 7 . Thermal . | . . . . Explosive . | . . . . Electromagnetic 11 | . 4 7 . Robot Hit Streak 4 | . 3 4 . Robot Miss Streak 2 | . 1 2 . Penetration Max . | . . . . Secondary Targets 1 | . . 1 . Max Gunslinging Chain 1 | . . 1 . Shots Hit Robots 24 | . 5 9 10 Core Hits 14 | . 4 8 2 Critical Hits . | . . . . Critical Kills . | . . . . Critical Parts Destroyed . | . . . . Melee Attacks 10 | . . . 10 Impact . | . . . . Slashing 10 | . . . 10 Piercing . | . . . . Sneak Attacks 1 | . . . 1 Combat Hostiles . | . . . . Follow-up Attacks . | . . . . Damage Inflicted 801 | . 122 145 534 Guns 196 | . 51 145 . Cannons . | . . . . Explosions 71 | . 71 . . Melee 534 | . . . 534 Ramming . | . . . . Kinetic 66 | . . 66 . Thermal 71 | . 71 . . Explosive . | . . . . Electromagnetic 130 | . 51 79 . Impact . | . . . . Slashing 534 | . . . 534 Piercing . | . . . . Highest Corruption 1 | . . . 1 Average Corruption 1 | . . . 1 Corruption Purged . | . . . . Overload Shots . | . . . . Overflow Damage . | . . . . Projectiles . | . . . . Explosions . | . . . . Melee . | . . . . Knockbacks . | . . . . Impact . | . . . . Kinetic . | . . . . Secondary . | . . . . Self-Inflicted Damage . | . . . . Shots . | . . . . Rammed . | . . . . Targets Rammed . | . . . . Kicked . | . . . . Crushed . | . . . . Highest Temperature 16 | . . . 16 Average Temperature 16 | . . . 16 Received Heat Transfer 185 | . 9 36 140 Siege Activations . | . . . . Robots Corrupted . | . . . . Combat Hostiles . | . . . . Parts Fried . | . . . . Impact Corruptions . | . . . . Robots Melted . | . . . . Combat Hostiles . | . . . . Parts Melted . | . . . . Heat Transferred 50 | . 50 . . Parts Sabotaged . | . . . . Parts Stolen . | . . . . Parts Stripped . | . . . . Power Chain Reactions 1 | . 1 . . Missiles Intercepted . | . . . . Alert | -11 -10 -10 -10 ------- Run | Scr Mat Min Exi Peak Influence 150 | . 77 150 . Average Influence 100 | . 59 133 . Maximum Alert Level . | . . . . Low Security (%) 100 | . 100 100 . Level 1 . | . . . . Level 2 . | . . . . Level 3 . | . . . . Level 4 . | . . . . Level 5 . | . . . . High Security . | . . . . Max Security . | . . . . Squads Dispatched . | . . . . Investigation . | . . . . Extermination . | . . . . Reinforcement . | . . . . Assault . | . . . . Garrison . | . . . . Intercept . | . . . . Construction Impeded . | . . . . Haulers Reinforced . | . . . . Stealth | -11 -10 -10 -10 --------- Run | Scr Mat Min Exi Distress Signals . | . . . . Communications Jammed . | . . . . Distress Signals . | . . . . Times Spotted 15 | . 3 4 8 Peak Tracking Total 9 | . 1 2 9 Tactical Retreats . | . . . . Traps | -11 -10 -10 -10 ------- Run | Scr Mat Min Exi Traps Triggered . | . . . . Indirectly . | . . . . Trap Hack Attempts . | . . . . Triggered . | . . . . Disarmed . | . . . . Reprogrammed . | . . . . Reused . | . . . . Traps Extracted . | . . . . Installed . | . . . . Triggered . | . . . . Machines | -11 -10 -10 -10 ---------- Run | Scr Mat Min Exi Machines Disabled . | . . . . Max in Single Turn . | . . . . Machines Sabotaged . | . . . . Garrisons Compromised . | . . . . Overloaded Fab Kills . | . . . . Fab Network Shutdowns . | . . . . Hacking | -11 -10 -10 -10 --------- Run | Scr Mat Min Exi Machines Accessed 1 | . . . 1 Terminals . | . . . . Fabricators . | . . . . Repair Stations . | . . . . Recycling Units . | . . . . Scanalyzers . | . . . . Garrison Access . | . . . . Total Hacks 1 | . . . 1 Successful 1 | . . . 1 Failed . | . . . . Catastrophic . | . . . . Database Lockouts . | . . . . Manual 1 | . . . 1 Terminals . | . . . . Fabricators . | . . . . Repair Stations . | . . . . Recycling Units . | . . . . Scanalyzers . | . . . . Garrison Access . | . . . . Terminal Hacks 1 | . . . 1 EX-Prototype ID Bank 1 | . . . 1 Fabricator Hacks . | . . . . Repair Station Hacks . | . . . . Recycling Unit Hacks . | . . . . Scanalyzer . | . . . . Garrison Access Hacks . | . . . . Unauthorized Hacks . | . . . . Terminals . | . . . . Fabricators . | . . . . Repair Stations . | . . . . Recycling Units . | . . . . Scanalyzers . | . . . . Garrison Access . | . . . . Data Cores Recovered . | . . . . Used . | . . . . Hacking Detections . | . . . . Full Trace Events . | . . . . Feedback Events . | . . . . Feedback Blocked . | . . . . Robot Schematics Acquired . | . . . . Robots Built . | . . . . Matter . | . . . . Time . | . . . . Total Robot Build Rating . | . . . . Part Schematics Acquired . | . . . . Parts Built . | . . . . Matter . | . . . . Time . | . . . . Total Part Build Rating . | . . . . Parts Repaired . | . . . . Time . | . . . . Parts Recycled . | . . . . Recycled Matter . | . . . . Retrieved Matter . | . . . . Retrieved Components . | . . . . Parts Scanalyzed . | . . . . Part Schematics Acquired . | . . . . Parts Damaged . | . . . . Bothacking | -11 -10 -10 -10 ------------ Run | Scr Mat Min Exi Used RIF Installer . | . . . . Robots Hacked . | . . . . Non-combat . | . . . . Combat . | . . . . Robot Hacks Applied . | . . . . Relay Couplers Released . | . . . . Robots Rewired . | . . . . Allies Hacked . | . . . . Hacks Repelled . | . . . . Allies | -11 -10 -10 -10 -------- Run | Scr Mat Min Exi Total Allies . | . . . . Largest Group . | . . . . Highest-Rated Group . | . . . . Highest-Rated Ally . | . . . . Total Orders . | . . . . Ally Attacks . | . . . . Total Damage . | . . . . Kills . | . . . . Allies Corrupted . | . . . . Allies Melted . | . . . . Intel | -11 -10 -10 -10 ------- Run | Scr Mat Min Exi Robot Analysis Total . | . . . . Derelict Logs Recovered . | . . . . Drone Launches . | . . . . Drone Recoveries . | . . . . Exploration | -11 -10 -10 -10 ------------- Run | Scr Mat Min Exi Turns Passed 547 | . 127 153 267 Spaces Moved 395 | 1 90 103 201 Core . | . . . . Treads . | . . . . Legs 395 | 1 90 103 201 Wheels . | . . . . Hover . | . . . . Flight . | . . . . Fastest Speed 120 | 120 120 120 120 Average Speed 120 | 120 120 120 120 Slowest Speed 120 | 120 120 120 120 Overloaded Moves . | . . . . Propulsion Burnouts . | . . . . Robots Hopped . | . . . . Cave-ins Triggered . | . . . . Exploration Rate (%) 26 | 2 36 23 43 Regions Visited 3 Branch Regions 2 Pre-discovered Areas . | . . . . Known Exits Taken . | . . . . Unknown Exits Taken 3 | 1 1 1 . Scrap Searched 1 | . . 1 . Spaces Dug . | . . . . Terrain Destroyed 3 | . 3 . . Melee . | . . . . Projectile . | . . . . AOE 3 | . 3 . . Actions | -11 -10 -10 -10 --------- Run | Scr Mat Min Exi Total 440 | . 102 120 218 Wait 3 | . . 2 1 Move 392 | . 89 102 201 Hop . | . . . . Pick Up 6 | . 4 1 1 Fast Attach 3 | . 1 2 . Attach . | . . . . Detach 1 | . . 1 . Swap 4 | . . 1 3 Drop 10 | . 4 4 2 Fire 11 | . 4 7 . Melee 10 | . . . 10 Ram . | . . . . Kick . | . . . . Crush . | . . . . Escape Stasis . | . . . . Rewire . | . . . . Trap . | . . . . Miscellaneous . | . . . . Route ------- -11/Scrapyard -10/Materials -10/Mines (discovered 2 exits: [*Mat] / *Exi) -10/Exiles (discovered 1 exit: [*Min]) History --------- Turn | Location | Event 1 | -11/Scrapyard | Discovered new exit (range 0) 1 | -11/Scrapyard | Entered Materials 105 | -10/Materials | Discovered new exit (range 14) 128 | -10/Materials | Entered Mines 224 | -10/Mines | Discovered new exit (range 10) 277 | -10/Mines | Deemed a non-threat by the Exiles lab entrance 277 | -10/Mines | Discovered new exit (range 5) 281 | -10/Mines | Entered Exiles 297 | -10/Exiles | Discovered new exit (range 15) 314 | -10/Exiles | Met 8R-AWN 329 | -10/Exiles | Met EX-HEX 363 | -10/Exiles | Met EX-BIN 380 | -10/Exiles | Aligned with FarCom system 381 | -10/Exiles | Given EX-Vault access code 412 | -10/Exiles | Opened EX-Vault 424 | -10/Exiles | Found Longsword +1 454 | -10/Exiles | Warned to stay clear of 0b10 Research branches 485 | -10/Exiles | Build established: Scavenger-Mutant 528 | -10/Exiles | Attacked by the Exiles 545 | -10/Exiles | Core integrity fell below 50% 548 | -10/Exiles | Core integrity fell below 20% 548 | -10/Exiles | Destroyed by as-31545 with Assembled F-torch Last Messages --------------- 00539_ HV Slug penetrates Wall. 00539_ Penetrated by HV Slug. 00539_ HV Slug penetrates Wall. 00540_ Aluminum Leg destroyed. 00540_ Mining Claw destroyed. 00540_ Lgt. Ion Engine destroyed. 00541_ Imp. Heat Sink destroyed. 00541_ System corrupted by crushing effect (+1). 00541_ Penetrated by HV Slug. 00541_ HV Slug penetrates Wall. 00541_ Penetrated by HV Slug. 00541_ HV Slug penetrates Wall. 00542_ Destroyed Prototype Protection. 00542_ Aluminum Leg severed. 00544_ Penetrated by HV Slug. 00544_ HV Slug penetrates Wall. 00546_ Penetrated by HV Slug. 00546_ HV Slug penetrates Wall. 00546_ Penetrated by HV Slug. 00546_ HV Slug penetrates Wall. Map ----- +----------------------------------------------------+ | ""#??????????????????????????????????????????????? | | ""#??????????????????????????????????????????????? | | ""#??????????????????????????????????????????????? | | ""#??????????????????????????????????????????????? | | ""#??????????????????????????????????????????????? | | ""#??????????????????????????????????????????????? | | ""#??????????????????????????????????????????????? | | ""#??????????????????????????????????????????????? | | ""#??????????????????????????????????????????????? | | """??????????????????????????????????????????????? | | ""#??????????????????????????????????????????????? | | ""???????????????????????????????????????????????? | | #??????????????????????????????????????????????? | | ""#??????????????????????????????????????????????? | | ###??????????????????????????????????????????????? | | ?????????????????????????????????????????????????? | | ?????????????????????????????????????????????? ??? | | ????????????????????????????????????????????? < # | | #########???????????????????????????????????? # | | """"""""##??????????????????????????????????? ? | | """ """"##?????????????????????????????????# #? | | "" " #???????????????????????????????## ## | | " """#???????????????????????????????# # | | " "#???????????#####???????????????# # | | " "##?????????##"a #??????????????## ? | | ""###???????# a@#?????????????## #?? | | """#??????##"aa ##????????????# #?? | | "#????### ag ###????????### #??? | | ##???# a a ########## #??? | | ##?## #""""## #???? | | ### * ##??? | | ## * #??? | | #### ##?? | | "#?#"""""#### ### | | #" ##?#######??#### * # | | ######??????????????##### | | ##???????????????????????### | | " ##??????????????????????????### | | """ ""#?????????????????????????????### | | ""#" "##??????????????????????????????#" | | """##"""""""##???????????????????????????????#### | | ""###########???????????????????????????????????# | | ##??????????????????????????????????????????????## | | ?????????????????????????????????????????????????# | | ?????????????????????????????????????????????????? | | ?????????????????????????????????????????????????? | | ?????????????????????????????????????????????????? | | ?????????????????????????????????????????????????? | | ?????????????????????????????????????????????????? | | ?????????????????????????????????????????????????? | +----------------------------------------------------+ Best States ------------- Heat Dissipation 39 Energy Generation 10 Energy Capacity 125 Matter Stores 300 Matter Capacity 300 Sight Range 16 Terrain Scan Density 10 Evasion (%) 40 Item Schematics ----------------- None Robot Schematics ------------------ None Fabricated ------------ Nothing Alien Tech Used ----------------- None Achievements -------------- None Challenges ------------ None Game ------ Seed HardenedSuspensionWheel Manual? 0 Play Time 00:06:14 Cumulative 296.6 hours Start 2020.06.01 @ 23:53:54 End 2020.06.01 @ 23:58:32 Sessions 1 Manual Loads 0 Difficulty Rogue Special Mode None Game No. 329 Rogue 329 Adventurer 0 Explorer 0 Win Type - Total 27 Types 16/3/2/1/2/0/3 Lore% 92 Gallery% 86 Achievement% 76 Wizard Run 0 Options --------- ASCII 0 Keyboard 0 Movement Arrows Keybinds 0 Fullscreen 2 Font 18/SmallcapsGlow Map View 76x50 Tactical HUD 1 Map Filters NONE Filters NONE Steam 1 RUN: a3acf3fe-470e-473f-90ff-c541f2910bb9